bitfinex-derivatives/quotes_ETHF0:USTF0_20250911
["timestamp","ask_amount","ask_price","bid_price","bid_amount"]
[1757569752995,0.9604,4417.6,4417.5,1.0]
[1757569753201,0.7341,4417.1,4417.0,0.3045]
[1757569753407,0.7341,4416.7,4416.6,0.5103]
[1757569754403,0.7341,4416.7,4416.6,0.7113]
[1757569755002,0.7341,4416.7,4416.6,0.5103]
[1757569755204,0.7341,4416.7,4416.1,0.3045]
[1757569756000,0.7341,4416.7,4416.0,0.1166]
[1757569756001,0.7341,4416.7,4416.6,0.5103]
[1757569757811,0.7341,4416.7,4416.6,0.7113]
[1757569759617,0.7341,4416.7,4416.6,0.2058]
[1757569761724,0.7341,4416.7,4416.0,0.1166]
[1757569762022,0.7341,4416.7,4416.6,0.2058]
[1757569763223,0.7341,4416.7,4416.6,0.5103]
[1757569763824,0.7341,4416.7,4416.6,0.7113]
[1757569766022,0.9605,4416.7,4416.6,0.7113]
[1757569778123,0.2264,4416.7,4416.6,0.7113]
[1757569778326,0.2264,4416.7,4416.6,4.93772]
[1757569778728,0.2264,4416.7,4416.6,29.63772]
[1757569779129,0.2264,4416.7,4416.6,4.93772]
[1757569779325,0.2264,4416.7,4416.6,0.93772]
[1757569779530,0.2264,4416.7,4416.6,25.4113]
[1757569779717,0.7456,4416.7,4416.6,25.4113]
[1757569779924,0.2264,4416.7,4416.6,25.4113]
[1757569780230,0.5317,4416.7,4416.6,25.4113]
[1757569780431,0.7456,4416.7,4416.6,25.4113]
[1757569780724,0.7456,4416.7,4416.6,0.7113]
[1757569781825,0.9528,4416.7,4416.6,0.7113]
[1757569783521,0.9528,4416.7,4416.4,0.3232]
[1757569783722,0.8538,4416.5,4416.4,0.3232]
[1757569784024,0.8538,4416.5,4416.4,0.5292]
[1757569784422,0.8538,4416.5,4416.4,0.7401]
[1757569785133,1.0802,4416.5,4416.4,0.7401]
[1757569786923,0.9528,4416.5,4416.4,0.7401]
[1757569787129,0.2264,4416.5,4416.4,0.7401]
[1757569787330,0.7456,4416.5,4416.4,0.7401]
[1757569789228,0.9528,4416.5,4416.4,0.7401]
[1757569789426,1.0802,4416.5,4416.4,0.7401]
[1757569790924,0.9528,4416.5,4416.4,0.7401]
[1757569792329,0.2264,4416.5,4416.4,0.7401]
[1757569793129,0.7456,4416.5,4416.4,0.7401]
[1757569793530,0.9528,4416.5,4416.4,0.7401]
[1757569795034,0.2264,4416.5,4416.4,0.7401]
[1757569795438,0.2264,4416.5,4416.4,1.90346626]
[1757569796036,0.2264,4416.5,4416.4,2.13346626]
[1757569798935,0.4313,4416.5,4416.4,0.7401]
[1757569799141,0.7442,4416.5,4416.4,0.9701]
[1757569799839,0.9559,4416.5,4416.4,0.9701]
[1757569800441,1.0771,4416.5,4416.4,0.206]
[1757569801445,1.0771,4416.5,4416.4,0.5027]
[1757569801740,0.9559,4416.5,4416.4,0.7174]
[1757569802534,1.0771,4416.5,4416.4,0.7174]
[1757569806350,0.9559,4416.5,4416.4,0.7174]
[1757569806547,0.9559,4416.5,4416.2,2.02988061]
[1757569806548,0.3129,4417.4,4416.5,0.1237]
[1757569806853,0.7295,4417.4,4416.5,0.3537]
[1757569807066,0.7295,4417.4,4416.6,0.2967]
[1757569808068,0.7295,4417.4,4417.3,0.7192]
[1757569810468,0.5178,4417.4,4417.3,0.7192]
[1757569810970,0.7295,4417.9,4417.8,0.2078]
[1757569811169,0.7295,4417.9,4417.8,0.5045]
[1757569811561,0.7295,4417.9,4417.8,0.7192]
[1757569816376,0.5178,4417.9,4417.8,0.7192]
[1757569816872,0.7295,4417.9,4417.8,0.7192]
[1757569820369,0.5178,4418.4,4418.3,0.7192]
[1757569820571,0.7295,4418.4,4418.3,0.7192]
[1757569820970,0.7295,4418.4,4418.3,0.2078]
[1757569823274,0.7295,4418.4,4418.3,0.5045]
[1757569823468,0.7295,4418.4,4418.3,0.7192]
[1757569842882,0.7131,4417.7,4417.4,2.02988061]
[1757569843085,0.8328,4417.5,4417.4,2.02988061]
[1757569843281,0.3021,4417.4,4417.2,2.02988061]
[1757569843487,0.7131,4417.4,4417.3,0.7246]
[1757569846493,0.1981,4417.4,4417.3,1.70619249]
[1757569846789,0.0033934,4417.9,4417.5,0.543]
[1757569846790,0.5002,4417.6,4417.5,0.543]
[1757569846989,0.5002,4417.6,4417.5,0.8437]
[1757569847491,0.0033934,4417.9,4417.8,0.7246]
[1757569847684,0.7164934,4417.9,4417.8,0.7246]
[1757569847995,0.7164934,4417.9,4417.8,25.4246]
[1757569851789,0.2014934,4417.9,4417.8,25.4246]
[1757569851997,0.0033934,4417.9,4417.8,25.4246]
[1757569852196,0.5002,4418.6,4418.5,0.4239]
[1757569852496,0.7131,4418.6,4418.5,0.7246]
[1757569854588,0.7131,4418.6,4418.5,1.70619249]
[1757569854892,0.7131,4418.6,4418.5,1.82529249]
[1757569856398,0.7131,4418.6,4418.5,0.7246]
[1757569860401,0.5056,4418.8,4418.7,0.4024]
[1757569860596,0.711,4418.8,4418.7,0.7124]
[1757569861405,0.5056,4419.1,4419.0,0.8388]
[1757569861600,0.711,4419.1,4419.0,0.8388]
[1757569861806,0.711,4419.1,4419.0,0.7124]
[1757569864208,0.309,4419.4,4419.3,0.4024]
[1757569864400,0.5056,4419.4,4419.3,0.7124]
[1757569865409,0.1966,4419.4,4419.3,0.7124]
[1757569867000,32.6,4420.2,4419.6,0.4024]
[1757569867204,0.309,4420.4,4420.0,0.5288]
[1757569867402,0.1966,4420.2,4420.1,0.7124]
[1757569867599,0.5056,4420.2,4420.1,0.7124]
[1757569868003,0.1966,4420.2,4420.1,0.7124]
[1757569868717,0.711,4420.2,4420.1,0.7124]
[1757569870117,0.1966,4420.2,4420.1,0.7124]
[1757569870508,0.309,4420.4,4420.1,0.7124]
[1757569870819,0.309,4420.4,4420.0,0.1264]
[1757569870820,0.5056,4420.4,4420.3,0.4024]
[1757569871017,0.5056,4420.4,4420.3,0.7124]
[1757569871508,0.711,4420.4,4420.3,0.7124]
[1757569878914,0.1966,4420.4,4420.3,0.7124]
[1757569879118,0.5287,4421.5,4421.4,0.1947]
[1757569879320,0.402,4420.7,4420.6,0.31]
[1757569879526,0.402,4420.7,4420.6,0.5047]
[1757569879822,0.711,4420.7,4420.6,0.5047]
[1757569880621,0.711,4420.7,4420.6,0.7124]
[1757569881222,6.47895322,4424.9,4420.6,0.7124]
[1757569881223,0.309,4421.4,4420.7,0.31]
[1757569881418,0.5056,4421.4,4421.3,1.69399249]
[1757569882118,0.1267,4423.0,4421.4,0.31]
[1757569882119,0.4357,4422.0,4421.4,0.31]
[1757569882321,0.8377,4422.0,4421.9,0.7124]
[1757569882724,0.711,4422.0,4421.9,0.7124]
[1757569883126,0.1966,4422.0,4421.9,0.7124]
[1757569883517,0.5056,4422.3,4422.2,0.7124]
[1757569883816,0.711,4422.3,4422.2,0.7124]
[1757569892327,0.1267,4423.0,4422.2,0.7124]
[1757569892328,0.7022,4422.9,4422.8,0.2079]
[1757569892826,0.7022,4422.9,4422.6,0.307]
[1757569893524,0.7022,4422.9,4422.5,0.307]
[1757569894430,0.7022,4422.9,4422.4,0.0033934]
[1757569894626,0.7022,4422.9,4422.5,0.307]
[1757569894827,0.7022,4422.9,4422.4,0.0033934]
[1757569896220,0.7022,4422.9,4422.5,0.307]
[1757569898029,0.7022,4422.9,4422.4,0.0033934]
[1757569898227,0.7022,4422.9,4422.5,0.307]
[1757569899332,0.7022,4422.9,4422.4,0.0033934]
[1757569899534,0.7022,4422.9,4422.5,0.307]
[1757569899833,0.7022,4422.9,4422.4,0.0033934]
[1757569900325,0.7022,4422.9,4422.5,0.307]
[1757569900527,0.7022,4422.9,4422.4,0.0033934]
[1757569901026,0.7022,4422.9,4422.5,0.307]
[1757569901927,0.5233,4422.5,4422.4,0.0033934]
[1757569902120,0.8192,4422.5,4422.4,0.0033934]
[1757569908441,0.8192,4422.5,4422.4,0.2112934]
[1757569909242,0.8192,4422.5,4422.4,0.0033934]
[1757569912836,1.39128149,4422.5,4422.4,0.0033934]
[1757569913137,0.8192,4422.5,4422.4,0.0033934]
[1757569913344,1.39130254,4422.5,4422.4,0.0033934]
[1757569913744,0.8192,4422.5,4422.4,0.0033934]
[1757569914147,0.7022,4422.5,4422.4,0.7321934]
[1757569914651,0.8192,4422.5,4422.4,0.2112934]
[1757569914843,0.8192,4422.5,4422.4,0.5182934]
[1757569917654,0.8192,4422.5,4422.4,0.0033934]
[1757569934465,0.8192,4422.5,4422.4,0.7196934]
[1757569934971,0.8192,4422.5,4422.4,0.0033934]
[1757569939570,0.129,4422.0,4421.5,2.02988061]
[1757569939761,0.3931,4421.6,4421.5,0.4186]
[1757569939966,1.55355264,4421.6,4421.2,0.2923]
[1757569940166,1.55355264,4421.6,4421.5,0.1263]
[1757569940372,2.35669738,4421.6,4421.5,0.1263]
[1757569940671,6.58286738,4421.6,4421.5,0.1263]
[1757569941266,6.58286738,4421.6,4420.5,0.1263]
[1757569941267,0.22617,4421.5,4420.5,0.1263]
[1757569941467,1.16045264,4420.7,4420.5,0.1263]
[1757569941771,0.229,4420.6,4420.5,0.1263]
[1757569942371,1.20988567,4420.6,4420.5,0.1263]
[1757569943468,1.20988567,4420.6,4420.5,0.4186]
[1757569946078,0.98088567,4420.6,4420.5,0.4186]
[1757569946281,1.12288567,4420.6,4420.5,0.4186]
[1757569946971,1.11388567,4420.6,4420.5,0.4186]
[1757569947172,0.98088567,4421.2,4421.0,0.1178]
[1757569947371,0.132,4421.1,4421.0,0.4317]
[1757569950278,32.571,4422.5,4421.0,0.8402]
[1757569950473,32.571,4422.5,4422.1,0.5213]
[1757569950678,0.98088567,4422.2,4422.1,0.3139]
[1757569953084,1.20988567,4422.2,4422.1,0.3139]
[1757569954078,5.20988567,4422.2,4422.1,0.3139]
[1757569957385,4.98088567,4422.2,4422.1,0.3139]
[1757569957587,5.20988567,4422.2,4422.1,0.3139]
[1757569959288,1.20988567,4422.2,4422.1,0.3139]
[1757569962481,0.98088567,4422.2,4422.1,0.3139]
[1757569962681,1.20988567,4422.2,4422.1,0.3139]
[1757569963588,1.20988567,4422.2,4421.5,0.1178]
[1757569963892,0.98088567,4421.6,4421.5,0.1178]
[1757569964083,1.20988567,4421.6,4421.5,0.1178]
[1757569964284,1.20988567,4421.6,4421.5,0.5263]
[1757569965184,0.98088567,4421.9,4421.5,0.5263]
[1757569965389,0.229,4421.8,4421.5,0.5263]
[1757569965589,0.229,4421.7,4421.6,0.7224]
[1757569968391,0.98088567,4422.0,4421.6,0.4085]
[1757569968593,0.98088567,4422.3,4422.2,0.7224]
[1757569968890,1.20988567,4422.3,4422.2,0.7224]
[1757569970690,1.7897183,4422.3,4422.2,0.7224]
[1757569971496,1.20988567,4422.3,4422.2,0.7224]
[1757569971692,1.20988567,4422.3,4422.0,0.1178]
[1757569971900,0.4134,4420.6,4419.6,4.840355]
[1757569972195,1.94028567,4420.6,4420.5,0.4085]
[1757569972394,0.9594,4420.6,4420.5,0.4085]
[1757569972591,1.94028567,4420.6,4420.5,0.4085]
[1757569972897,0.546,4420.7,4420.5,4.5263]
[1757569973092,0.546,4420.7,4420.5,0.5263]
[1757569973301,1.52688567,4420.7,4420.5,0.5263]
[1757569973992,1.73518567,4420.7,4420.6,0.7224]
[1757569974693,1.94028567,4420.7,4420.6,0.7224]
[1757569975596,1.94028567,4420.7,4420.0,0.1178]
[1757569975788,1.39428567,4420.4,4420.3,0.2074]
[1757569976098,1.39428567,4420.4,4420.3,0.5213]
[1757569976295,1.71128567,4420.4,4420.3,0.7224]
[1757569976497,0.7304,4420.4,4420.3,0.7224]
[1757569976793,1.71128567,4420.4,4420.3,0.7224]
[1757569980396,0.7304,4420.4,4420.3,0.7224]
[1757569985096,0.229,4420.5,4420.3,0.7224]
[1757569985296,0.229,4420.5,4420.3,0.4085]
[1757569985606,0.229,4420.5,4420.4,0.727]
[1757569985803,0.4308,4420.5,4420.4,0.727]
[1757569986791,0.7502,4420.5,4420.4,0.727]
[1757569987900,0.3194,4420.8,4420.7,0.4109]
[1757569988105,0.214,4420.8,4420.7,0.727]
[1757569989006,0.4158,4420.8,4420.7,0.727]
[1757569989202,1.92118567,4420.8,4420.0,1.09868567]
[1757569989393,0.7263,4420.2,4420.1,0.727]
[1757569989599,1.70718567,4420.2,4420.1,0.727]
[1757569989810,0.9525,4420.2,4420.1,0.727]
[1757569991806,1.93338567,4420.2,4420.1,0.727]
[1757569992311,0.9525,4420.2,4420.1,0.727]
[1757570011321,0.7474,4420.2,4420.1,0.727]
[1757570011621,0.9573,4420.2,4420.1,0.727]
[1757570017024,0.2262,4420.2,4420.1,0.727]
[1757570017326,0.496,4422.0,4421.9,0.2063]
[1757570017618,0.496,4422.0,4421.9,0.5097]
[1757570017619,0.8062,4422.0,4421.9,0.5097]
[1757570017824,1.3963469,4422.0,4421.9,0.5097]
[1757570018231,1.3963469,4422.0,4421.9,0.7125]
[1757570018618,0.8062,4422.0,4421.9,0.7125]
[1757570018827,0.8062,4422.0,4421.9,0.4091]
[1757570021126,0.229,4422.4,4422.0,0.1191]
[1757570021127,0.3102,4422.4,4422.0,0.1191]
[1757570021428,0.5083,4422.4,4422.3,0.7125]
[1757570021632,0.7182,4422.4,4422.3,0.7125]
[1757570023017,0.5083,4422.4,4422.3,0.7125]
[1757570023224,0.9472,4422.9,4422.8,0.4091]
[1757570023425,0.9472,4422.9,4422.8,0.7125]
[1757570026534,0.9472,4422.9,4422.8,0.4091]
[1757570027024,0.9472,4422.9,4422.8,0.2063]
[1757570027224,0.9472,4422.9,4422.1,0.3034]
[1757570027424,2.10880201,4422.9,4422.1,0.3034]
[1757570027620,2.10880201,4422.9,4422.3,0.3034]
[1757570036633,0.1181,4422.5,4422.4,0.2063]
[1757570036829,0.5261,4422.5,4421.8,0.3034]
[1757570037031,0.5261,4422.5,4422.4,0.2063]
[1757570037231,0.8391,4422.5,4422.4,0.2063]
[1757570037432,0.8391,4422.5,4422.1,0.3218]
[1757570038733,0.8391,4422.5,4421.5,0.3458]
[1757570038941,0.5195,4421.7,4421.6,0.95234]
[1757570039143,0.7318,4421.7,4421.6,0.7262]
[1757570039332,0.5195,4421.7,4421.6,25.4262]
[1757570039640,0.313,4421.7,4421.6,25.4262]
[1757570040539,0.5195,4421.7,4421.6,25.4262]
[1757570040933,0.7318,4421.7,4421.6,25.4262]
[1757570041128,0.7318,4421.7,4421.6,0.2041]
[1757570041836,0.313,4421.9,4421.7,0.3218]
[1757570042032,0.5195,4421.9,4421.8,0.7262]
[1757570042942,0.313,4421.9,4421.8,0.7262]
[1757570043339,0.2065,4422.4,4422.3,0.4044]
[1757570043543,0.313,4422.6,4422.4,0.3218]
[1757570043744,0.313,4422.6,4422.5,0.7262]
[1757570045535,0.5195,4422.6,4422.5,0.7262]
[1757570050547,0.7318,4422.6,4422.5,0.7262]
[1757570050938,0.1197,4422.5,4421.7,2.01272117]
[1757570051244,0.5195,4421.8,4421.7,0.7262]
[1757570052146,0.5195,4421.8,4421.7,1.88780201]
[1757570053849,0.7318,4421.8,4421.7,0.4044]
[1757570054149,0.7318,4421.8,4421.7,0.2041]
[1757570055346,0.1197,4421.5,4421.4,2.01272117]
[1757570055547,0.1197,4421.5,4420.5,0.1178]
[1757570055548,0.8515,4421.0,4420.9,2.41712117]
[1757570055846,0.8515,4421.0,4420.9,0.4044]
[1757570057050,0.8515,4421.0,4420.9,0.7262]
[1757570060052,0.8515,4421.0,4420.9,0.4044]
[1757570061152,0.8515,4421.0,4420.9,0.7262]
[1757570062255,0.8515,4421.0,4420.9,0.4044]
[1757570062756,0.8515,4421.0,4420.9,0.7262]
[1757570063054,0.313,4421.5,4421.4,0.4044]
[1757570063246,0.1197,4422.0,4421.5,0.1173]
[1757570063458,0.313,4421.9,4421.8,0.4044]
[1757570063751,0.5195,4421.9,4421.8,0.7262]
[1757570064455,0.5195,4421.9,4421.8,1.70603659]
[1757570065457,0.7318,4421.9,4421.8,1.70603659]
[1757570067952,0.313,4421.9,4421.8,1.70603659]
[1757570069154,0.1197,4423.0,4421.8,1.70603659]
[1757570069155,0.3016,4422.4,4421.9,0.3036]
[1757570069365,0.5326,4423.0,4422.9,0.4978]
[1757570069666,0.5326,4423.0,4422.9,0.1942]
[1757570069861,0.8342,4423.0,4422.9,0.1942]
[1757570072554,0.5326,4423.0,4422.6,1.28343659]
[1757570072752,0.3016,4422.9,4422.6,1.28343659]
[1757570072953,0.7145,4422.7,4422.6,1.67593659]
[1757570076556,0.51,4422.7,4422.6,1.67593659]
[1757570081568,0.3016,4423.4,4422.9,0.3036]
[1757570081761,0.2084,4423.3,4423.2,0.97983659]
[1757570081966,0.7145,4423.3,4423.2,1.67593659]
[1757570085269,0.7145,4423.3,4423.2,1.17403659]
[1757570085458,0.7145,4423.3,4423.2,0.1942]
[1757570086760,0.7145,4423.3,4423.2,0.4978]
[1757570087869,0.51,4423.3,4423.2,0.6961]
[1757570089458,0.7145,4423.3,4423.2,0.6961]
[1757570090561,0.7145,4423.3,4423.2,0.3925]
[1757570094676,0.7145,4423.3,4423.2,0.1942]
[1757570097568,0.7145,4423.3,4423.2,0.5118]
[1757570099684,0.7145,4423.3,4423.2,0.1942]
[1757570100871,0.7145,4423.3,4423.2,0.7191]
[1757570101881,0.7145,4423.3,4423.2,0.4015]
[1757570102679,0.7145,4423.3,4423.2,0.1942]
[1757570103677,0.1246,4423.0,4422.5,0.1178]
[1757570103881,0.7015,4422.7,4422.6,1.94173659]
[1757570104080,0.5034,4422.7,4422.6,1.94173659]
[1757570105381,0.2963,4422.7,4422.6,1.94173659]
[1757570105682,0.2963,4422.7,4422.6,1.71563659]
[1757570105879,0.5034,4422.7,4422.6,1.71563659]
[1757570111091,0.2963,4422.7,4422.6,1.71563659]
[1757570111286,0.2963,4422.9,4422.8,0.4182]
[1757570111486,0.2963,4422.9,4422.8,1.71563659]
[1757570111987,0.5034,4422.9,4422.8,1.71563659]
[1757570114790,0.1197,4423.5,4422.8,1.71563659]
[1757570114991,0.2963,4423.4,4422.8,1.39803659]
[1757570115292,0.5034,4423.0,4422.9,0.7358]
[1757570116796,0.8261,4423.0,4422.9,0.7358]
[1757570116983,0.2071,4422.4,4422.3,2.33032117]
[1757570117189,0.7015,4422.4,4422.3,0.7358]
[1757570117389,0.5034,4422.4,4422.3,1.94363659]
[1757570117590,0.2963,4422.4,4422.3,3.95635776]
[1757570117796,0.5298,4423.0,4422.9,0.2109]
[1757570117996,0.8261,4423.0,4422.9,0.2109]
[1757570119097,0.8261,4423.0,4422.9,0.5285]
[1757570119398,0.8261,4423.0,4422.9,0.7358]
[1757570120300,0.7015,4423.0,4422.9,1.71563659]
[1757570120493,0.5034,4423.0,4422.9,0.7358]
[1757570122900,0.8261,4423.0,4422.9,0.4182]
[1757570123803,0.5298,4423.0,4422.6,0.228]
[1757570124002,0.7015,4422.7,4422.6,0.4389]
[1757570124202,0.7015,4422.7,4422.6,0.7565]
[1757570124403,0.7015,4422.7,4422.6,0.9638]
[1757570125299,0.5034,4422.7,4422.6,0.9638]
[1757570125494,0.2963,4422.7,4422.6,0.9638]
[1757570125889,0.2963,4422.9,4422.7,0.3176]
[1757570126097,0.2963,4422.9,4422.8,0.7358]
[1757570129205,0.1197,4423.5,4422.8,0.82507]
[1757570129401,0.8396,4423.5,4423.4,0.2096]
[1757570132809,0.5396,4423.5,4422.8,0.3201]
[1757570133002,0.3,4423.4,4422.8,0.3201]
[1757570133710,0.7199,4423.4,4423.3,0.2096]
[1757570133911,0.7199,4423.4,4423.3,0.5297]
[1757570134301,0.3,4423.4,4423.3,0.7297]
[1757570134999,0.5086,4423.4,4423.3,0.7297]
[1757570136007,0.5086,4423.4,4423.3,25.4297]
[1757570137012,0.3,4423.4,4423.3,25.4297]
[1757570139008,0.1278,4424.0,4423.3,25.4297]
[1757570139208,0.7199,4423.9,4423.8,0.2096]
[1757570141317,0.7199,4423.9,4423.5,0.3201]
[1757570141519,0.8415,4423.5,4423.4,0.2096]
[1757570141815,0.8415,4423.5,4423.4,0.5297]
[1757570142006,0.8415,4423.5,4423.4,0.7297]
[1757570145325,0.5086,4423.5,4423.4,0.7297]
[1757570145620,0.5086,4423.9,4423.8,0.7297]
[1757570147816,0.7199,4423.9,4423.8,0.7297]
[1757570150025,0.5086,4423.9,4423.8,0.7297]
[1757570151013,0.7199,4423.9,4423.8,0.7297]
[1757570153121,0.5086,4423.9,4423.8,0.7297]
[1757570154325,0.7199,4423.9,4423.8,0.7297]
[1757570155430,0.7199,4424.4,4424.3,0.2096]
[1757570156827,0.4199,4424.4,4423.7,0.3201]
[1757570157027,0.2086,4423.8,4423.7,0.7344]
[1757570157228,0.5025,4423.8,4423.7,0.7344]
[1757570158429,0.7077,4423.8,4423.7,0.7344]
[1757570163927,0.7077,4423.8,4423.7,0.4143]
[1757570164132,0.7077,4423.8,4423.7,0.7083]
[1757570164828,0.7077,4423.8,4423.7,0.4143]
[1757570165033,0.7077,4423.8,4423.7,0.2096]
[1757570165432,0.7077,4423.8,4423.7,0.7083]
[1757570166928,0.7077,4423.8,4423.7,0.2096]
[1757570167427,0.7077,4423.8,4423.7,0.7083]
[1757570169837,0.7077,4423.8,4423.7,0.2096]
[1757570170034,0.2939,4423.7,4423.6,1.16004973]
[1757570170440,0.711,4423.7,4423.6,1.37044973]
[1757570170738,0.711,4423.7,4423.6,1.86914973]
[1757570171741,0.2939,4423.3,4423.2,2.01272117]
[1757570172037,0.711,4422.9,4422.8,0.4384]
[1757570173237,0.711,4422.9,4422.8,0.7324]
[1757570174337,0.2119,4423.4,4423.3,0.4151]
[1757570174537,0.5058,4423.4,4423.3,1.86914973]
[1757570174746,0.2939,4423.4,4423.3,1.86914973]
[1757570175437,0.5341,4424.0,4423.9,0.4151]
[1757570175638,0.828,4424.0,4423.9,0.7091]
[1757570176039,0.828,4424.0,4423.9,0.4151]
[1757570176238,0.828,4424.0,4423.9,0.7091]
[1757570176746,0.828,4424.0,4423.9,0.4151]
[1757570176941,0.828,4424.0,4423.9,0.2104]
[1757570177141,0.828,4424.0,4423.6,0.294]
[1757570177639,0.2939,4423.9,4423.8,0.2104]
[1757570177840,0.711,4423.9,4423.8,0.2104]
[1757570179745,0.117,4424.0,4423.3,1.45404973]
[1757570179941,0.711,4423.4,4423.3,1.37044973]
[1757570180144,0.711,4423.4,4423.0,0.522]
[1757570180344,0.2939,4423.3,4423.0,0.522]
[1757570180545,0.711,4423.3,4423.2,0.2104]
[1757570182143,0.2939,4423.9,4423.3,0.294]
[1757570182343,0.2939,4423.9,4423.8,1.86914973]
[1757570182746,0.5058,4424.4,4424.3,0.4151]
[1757570182947,0.5058,4424.4,4424.3,0.7091]
[1757570183252,0.711,4424.4,4424.3,0.7091]
[1757570183451,0.5341,4424.0,4423.9,0.7324]
[1757570183650,0.828,4424.0,4423.9,0.7324]
[1757570183840,0.711,4424.0,4423.9,0.9371]
[1757570184045,0.5058,4424.0,4423.9,0.9371]
[1757570184254,0.5417,4424.5,4424.4,0.2104]
[1757570184555,0.5417,4424.5,4424.0,0.294]
[1757570184744,0.2939,4424.4,4423.9,0.228]
[1757570184950,0.828,4424.0,4423.9,0.6431]
[1757570185148,0.828,4424.0,4423.9,0.9371]
[1757570186253,0.828,4424.0,4423.9,0.4384]
[1757570186453,0.828,4424.0,4423.9,1.41735285]
[1757570186849,0.828,4424.0,4423.9,1.18935285]
[1757570187156,0.828,4424.0,4423.9,0.97895285]
[1757570187357,0.828,4424.0,4423.9,1.18935285]
[1757570192050,0.828,4424.0,4423.9,0.5258]
[1757570192250,0.828,4424.0,4423.9,1.50475285]
[1757570192548,0.828,4424.0,4423.9,1.71895285]
[1757570193160,0.828,4424.0,4423.9,1.40355285]
[1757570193856,0.828,4424.0,4423.9,1.71895285]
[1757570195159,0.828,4424.0,4423.7,0.228]
[1757570196349,0.828,4424.0,4423.5,0.97895285]
[1757570196553,0.3204,4423.9,4423.5,1.29435285]
[1757570196752,0.7263,4423.6,4423.5,1.71315285]
[1757570197265,0.1289,4423.5,4423.4,0.4326]
[1757570197447,0.5348,4423.5,4423.1,2.01272117]
[1757570197652,0.7263,4423.1,4423.0,2.21732117]
[1757570197852,0.7263,4423.1,4423.0,0.2046]
[1757570198058,0.7263,4423.1,4423.0,0.7342]
[1757570199862,0.8552,4423.0,4422.9,1.20695285]
[1757570200163,0.8552,4423.0,4422.9,1.41155285]
[1757570200352,0.1289,4422.5,4422.4,2.01272117]
[1757570200560,0.8552,4422.5,4422.4,1.72695285]
[1757570200758,0.7263,4422.5,4422.4,26.64115285]
[1757570201459,0.8552,4422.5,4422.4,1.94115285]
[1757570203469,0.3204,4422.5,4422.4,1.94115285]
[1757570204861,0.3204,4422.9,4422.5,0.1175]
[1757570205066,0.7263,4422.9,4422.8,1.71315285]
[1757570205569,0.7263,4422.9,4422.8,1.39775285]
[1757570207577,0.7263,4422.9,4422.8,1.18355285]
[1757570208080,0.7263,4422.9,4422.8,1.71315285]
[1757570209665,0.3204,4423.4,4422.8,1.39775285]
[1757570209872,0.3204,4423.4,4422.6,0.40688]
[1757570209873,0.5254,4423.4,4423.3,1.71315285]
[1757570210472,0.7263,4423.4,4423.3,1.71315285]
[1757570210668,0.7263,4423.4,4423.0,0.3154]
[1757570210976,0.7263,4423.4,4423.3,0.2046]
[1757570211878,0.7263,4423.4,4422.9,0.5434]
[1757570212178,0.8552,4423.0,4422.9,0.4326]
[1757570213880,0.4059,4422.7,4422.6,0.228]
[1757570214173,0.7263,4422.7,4422.6,0.4326]
[1757570214772,0.7263,4422.7,4422.6,0.748]
[1757570214972,0.7263,4422.7,4422.6,1.41155285]
[1757570215176,0.8552,4422.5,4422.4,1.18355285]
[1757570217374,0.8552,4422.5,4422.4,0.2046]
[1757570221081,0.8552,4422.5,4422.4,1.18355285]
[1757570221283,0.8552,4422.5,4422.4,1.69705285]
[1757570221675,0.7263,4422.5,4422.4,1.69705285]
[1757570221879,0.5254,4422.5,4422.4,1.69705285]
[1757570227891,0.8487,4422.5,4422.0,1.27755285]
[1757570228088,0.4094,4422.1,4422.0,1.69505285]
[1757570228283,0.73,4422.1,4422.0,1.69505285]
[1757570232292,0.73,4422.1,4422.0,0.7161]
[1757570232792,0.3206,4422.1,4422.0,0.7161]
[1757570232994,0.3206,4422.4,4422.3,0.7161]
[1757570233291,0.3206,4422.4,4422.3,1.69505285]
[1757570234588,0.5234,4422.4,4422.3,1.69505285]
[1757570238494,0.3206,4422.4,4422.3,1.69505285]
[1757570239497,0.5234,4422.4,4422.3,0.7161]
[1757570239794,0.5234,4422.4,4422.3,1.69505285]
[1757570240492,0.3206,4422.4,4422.3,0.7161]
[1757570240692,0.5234,4422.4,4422.3,1.69505285]
[1757570241785,0.3206,4422.4,4422.3,0.7161]
[1757570241992,0.3206,4422.4,4422.3,1.69505285]
[1757570242386,32.566,4424.1,4422.3,1.69505285]
[1757570242387,0.3206,4422.9,4422.4,0.2986]
[1757570242595,0.8589,4423.5,4423.4,0.2026]
[1757570242800,1.08500001,4423.5,4423.4,0.2026]
[1757570243801,0.8589,4423.5,4423.4,0.2026]
[1757570244706,0.8589,4423.5,4422.9,0.97895285]
[1757570244907,0.3206,4423.4,4422.9,1.27755285]
[1757570245198,0.5234,4423.0,4422.9,1.69505285]
[1757570246294,0.5234,4423.0,4422.9,0.7161]
[1757570246503,0.8467,4423.0,4422.6,24.7]
[1757570246702,0.73,4422.6,4422.5,0.4306]
[1757570247000,0.73,4422.6,4422.5,0.9441]
[1757570247708,0.73,4422.6,4422.5,0.2026]
[1757570248001,0.73,4422.6,4422.5,0.5227]
[1757570248303,0.73,4422.6,4422.5,0.7249]
[1757570254900,0.73,4422.6,4422.5,0.4048]
[1757570255906,0.73,4422.6,4422.5,0.7249]
[1757570256103,0.5283,4422.6,4422.5,0.7249]
[1757570256500,0.741,4422.6,4422.5,0.7249]
[1757570256701,0.741,4422.6,4422.5,0.2026]